[Event "Late-Titled-Tuesday-Blitz-June-25-2024"]
[Site "Chess.com"]
[Date "2024.06.25"]
[Round "5"]
[White "osielchesslover2011"]
[Black "KorolDimitriy75"]
[Result "1/2-1/2"]
[WhiteElo "2188"]
[BlackElo "2399"]
[TimeControl "180+1"]
[EndTime "14:54:13 PDT"]
[Termination "Game drawn by repetition"]

1. e4 {[%clk 0:03:00.9]} 1... c5 {[%clk 0:03:00.2]} 2. Nf3 {[%clk 0:03:00.8]}
2... d6 {[%clk 0:03:00.7]} 3. d4 {[%clk 0:03:00.3]} 3... cxd4 {[%clk 0:03:01.6]}
4. Nxd4 {[%clk 0:03:00.6]} 4... Nf6 {[%clk 0:03:01.9]} 5. Nc3 {[%clk 0:03:01.1]}
5... g6 {[%clk 0:03:02.6]} 6. Be3 {[%clk 0:03:00.9]} 6... Bg7 {[%clk 0:03:03.2]}
7. f3 {[%clk 0:03:01.3]} 7... O-O {[%clk 0:03:04.1]} 8. Qd2 {[%clk 0:03:01.8]}
8... Nc6 {[%clk 0:03:04.8]} 9. Bc4 {[%clk 0:03:02.2]} 9... Bd7 {[%clk
0:03:04.8]} 10. h4 {[%clk 0:03:02.8]} 10... Qa5 {[%clk 0:03:04.4]} 11. Bb3
{[%clk 0:03:00.5]} 11... Rfc8 {[%clk 0:03:03.6]} 12. h5 {[%clk 0:03:00.7]} 12...
Nxh5 {[%clk 0:03:03.3]} 13. g4 {[%clk 0:03:00.7]} 13... Nf6 {[%clk 0:03:03.3]}
14. O-O-O {[%clk 0:02:58.4]} 14... Ne5 {[%clk 0:03:02.8]} 15. Bh6 {[%clk
0:02:58.4]} 15... Bxh6 {[%clk 0:03:02.7]} 16. Qxh6 {[%clk 0:02:57.9]} 16... Rxc3
{[%clk 0:03:02.5]} 17. bxc3 {[%clk 0:02:54.5]} 17... Qxc3 {[%clk 0:03:03.4]} 18.
Kb1 {[%clk 0:02:34.4]} 18... Rc8 {[%clk 0:03:02.5]} 19. g5 {[%clk 0:01:51.4]}
19... Nh5 {[%clk 0:03:01.8]} 20. Rxh5 {[%clk 0:01:51.2]} 20... gxh5 {[%clk
0:03:02.7]} 21. f4 {[%clk 0:01:47.4]} 21... Nc4 {[%clk 0:02:49]} 22. Bxc4 {[%clk
0:01:40.8]} 22... Rxc4 {[%clk 0:02:49.9]} 23. Rd3 {[%clk 0:00:53]} 23... Qe1+
{[%clk 0:02:26.5]} 24. Kb2 {[%clk 0:00:52.9]} 24... Qf2 {[%clk 0:02:26.6]} 25.
f5 {[%clk 0:00:32.9]} 25... Rxd4 {[%clk 0:00:26.8]} 26. f6 {[%clk 0:00:16.5]}
26... Rb4+ {[%clk 0:00:18.8]} 27. Kc3 {[%clk 0:00:08.1]} 27... Qc5+ {[%clk
0:00:14.1]} 28. Kd2 {[%clk 0:00:07]} 28... Qf2+ {[%clk 0:00:12.7]} 29. Kc3
{[%clk 0:00:06.9]} 29... Qc5+ {[%clk 0:00:11.2]} 30. Kd2 {[%clk 0:00:07]} 30...
Qf2+ {[%clk 0:00:09.8]} 31. Kc3 {[%clk 0:00:07.1]} 1/2-1/2

[Event "Late-Titled-Tuesday-Blitz-June-25-2024"]
[Site "Chess.com"]
[Date "2024.06.25"]
[Round "5"]
[White "chess_sharparchitect"]
[Black "Winner_7777"]
[Result "0-1"]
[WhiteElo "2333"]
[BlackElo "2512"]
[TimeControl "180+1"]
[EndTime "14:54:17 PDT"]
[Termination "Winner_7777 won on time"]

1. c4 {[%clk 0:03:00.9]} 1... e5 {[%clk 0:02:59.6]} 2. Nc3 {[%clk 0:03:00.8]}
2... d6 {[%clk 0:03:00.2]} 3. Nf3 {[%clk 0:02:55.9]} 3... f5 {[%clk 0:03:00.5]}
4. d4 {[%clk 0:02:56]} 4... e4 {[%clk 0:03:00.7]} 5. Ng5 {[%clk 0:02:54.9]} 5...
Be7 {[%clk 0:02:59.5]} 6. h4 {[%clk 0:02:47.5]} 6... Nf6 {[%clk 0:02:37]} 7. e3
{[%clk 0:02:44.3]} 7... O-O {[%clk 0:02:36.4]} 8. Be2 {[%clk 0:02:29]} 8... h6
{[%clk 0:02:19.6]} 9. Nh3 {[%clk 0:02:27]} 9... c5 {[%clk 0:02:19.9]} 10. b3
{[%clk 0:02:10.8]} 10... Nc6 {[%clk 0:02:17]} 11. Bb2 {[%clk 0:02:05.9]} 11...
Kh7 {[%clk 0:01:40.5]} 12. Qd2 {[%clk 0:01:38.8]} 12... cxd4 {[%clk 0:01:27.7]}
13. exd4 {[%clk 0:01:37.9]} 13... d5 {[%clk 0:01:27.9]} 14. Ng5+ {[%clk
0:01:16.2]} 14... Kh8 {[%clk 0:01:26.3]} 15. cxd5 {[%clk 0:01:00.1]} 15... Nxd5
{[%clk 0:01:27.2]} 16. Bc4 {[%clk 0:01:00.1]} 16... Bb4 {[%clk 0:00:51.6]} 17.
O-O-O {[%clk 0:00:41.3]} 17... Bxc3 {[%clk 0:00:20.4]} 18. Bxc3 {[%clk
0:00:38.5]} 18... hxg5 {[%clk 0:00:20.6]} 19. hxg5+ {[%clk 0:00:24.2]} 19... Kg8
{[%clk 0:00:21]} 20. g6 {[%clk 0:00:14]} 20... Be6 {[%clk 0:00:18.2]} 21. Rh7
{[%clk 0:00:11.2]} 21... Qf6 {[%clk 0:00:16.9]} 22. Rdh1 {[%clk 0:00:05.2]}
22... Qxg6 {[%clk 0:00:16.9]} 23. Rh8+ {[%clk 0:00:05.3]} 23... Kf7 {[%clk
0:00:16.9]} 24. R8h3 {[%clk 0:00:04.5]} 24... Rad8 {[%clk 0:00:12.2]} 25. Bxd5
{[%clk 0:00:03.9]} 25... Rxd5 {[%clk 0:00:11.3]} 26. Rg3 {[%clk 0:00:04.3]}
26... Qf6 {[%clk 0:00:11.4]} 27. Rh7 {[%clk 0:00:03.7]} 27... Rg8 {[%clk
0:00:12]} 28. Kb1 {[%clk 0:00:03.1]} 28... Nxd4 {[%clk 0:00:12.2]} 29. Bxd4
{[%clk 0:00:02.2]} 29... Qxd4 {[%clk 0:00:12.9]} 30. Qg5 {[%clk 0:00:01.3]}
30... Qd1+ {[%clk 0:00:11.3]} 0-1

[Event "Late-Titled-Tuesday-Blitz-June-25-2024"]
[Site "Chess.com"]
[Date "2024.06.25"]
[Round "5"]
[White "JanistanTV"]
[Black "Eloist"]
[Result "1-0"]
[WhiteElo "2666"]
[BlackElo "2465"]
[TimeControl "180+1"]
[EndTime "14:54:20 PDT"]
[Termination "JanistanTV won on time"]

1. d4 {[%clk 0:03:00.9]} 1... e6 {[%clk 0:02:59.6]} 2. c4 {[%clk 0:03:00.4]}
2... Nf6 {[%clk 0:02:59.8]} 3. Nc3 {[%clk 0:02:59.8]} 3... Bb4 {[%clk
0:02:59.2]} 4. Qc2 {[%clk 0:02:59.8]} 4... c5 {[%clk 0:02:58.9]} 5. dxc5 {[%clk
0:02:59.5]} 5... O-O {[%clk 0:02:58.9]} 6. a3 {[%clk 0:02:53.5]} 6... Bxc5
{[%clk 0:02:59]} 7. Nf3 {[%clk 0:02:51.1]} 7... b6 {[%clk 0:02:57.5]} 8. Bf4
{[%clk 0:02:49.7]} 8... Nh5 {[%clk 0:02:54]} 9. Bg5 {[%clk 0:02:48.3]} 9... Be7
{[%clk 0:02:47.3]} 10. Bxe7 {[%clk 0:02:44.1]} 10... Qxe7 {[%clk 0:02:46.8]} 11.
e3 {[%clk 0:02:43.6]} 11... Bb7 {[%clk 0:02:45.2]} 12. Be2 {[%clk 0:02:44]}
12... Nf6 {[%clk 0:02:43.5]} 13. O-O {[%clk 0:02:44.2]} 13... d6 {[%clk
0:02:41.9]} 14. Rfd1 {[%clk 0:02:43.8]} 14... Rd8 {[%clk 0:02:34.6]} 15. Rd2
{[%clk 0:02:42.7]} 15... Nbd7 {[%clk 0:02:18.4]} 16. b4 {[%clk 0:02:37.8]} 16...
a6 {[%clk 0:01:57.8]} 17. Rad1 {[%clk 0:02:36.2]} 17... Nf8 {[%clk 0:01:32.3]}
18. Na4 {[%clk 0:02:29.7]} 18... Qc7 {[%clk 0:01:18.9]} 19. Qb2 {[%clk
0:02:18.2]} 19... Ne4 {[%clk 0:01:09.7]} 20. Rd3 {[%clk 0:02:06.8]} 20... Rac8
{[%clk 0:00:59.9]} 21. Nd2 {[%clk 0:01:39.3]} 21... b5 {[%clk 0:00:51.1]} 22.
Nxe4 {[%clk 0:01:39.3]} 22... Bxe4 {[%clk 0:00:46.8]} 23. Rd4 {[%clk 0:01:39.3]}
23... Bc6 {[%clk 0:00:20.4]} 24. Nc3 {[%clk 0:01:35]} 24... bxc4 {[%clk
0:00:19.2]} 25. Rxc4 {[%clk 0:01:32.7]} 25... Qb7 {[%clk 0:00:19.2]} 26. Bf1
{[%clk 0:01:31.6]} 26... d5 {[%clk 0:00:18.6]} 27. Rg4 {[%clk 0:01:27.8]} 27...
Ng6 {[%clk 0:00:17.2]} 28. h4 {[%clk 0:01:23]} 28... f5 {[%clk 0:00:16.5]} 29.
Rg3 {[%clk 0:01:19.3]} 29... Nxh4 {[%clk 0:00:16.5]} 30. a4 {[%clk 0:01:18.6]}
30... Ng6 {[%clk 0:00:15.1]} 31. b5 {[%clk 0:01:16.5]} 31... axb5 {[%clk
0:00:14.9]} 32. axb5 {[%clk 0:01:16.4]} 32... Be8 {[%clk 0:00:15.1]} 33. b6
{[%clk 0:01:14.4]} 33... Rb8 {[%clk 0:00:14.2]} 34. Rb1 {[%clk 0:01:14.2]} 34...
Rdc8 {[%clk 0:00:13.6]} 35. Qa3 {[%clk 0:01:07.4]} 35... Rc6 {[%clk 0:00:12]}
36. Ba6 {[%clk 0:01:06.2]} 36... Qa8 {[%clk 0:00:12.1]} 37. Qa5 {[%clk
0:00:54.5]} 37... Rxc3 {[%clk 0:00:11.1]} 38. Qxc3 {[%clk 0:00:52.1]} 38... Qxa6
{[%clk 0:00:11.3]} 39. Qc7 {[%clk 0:00:47.7]} 39... Qb7 {[%clk 0:00:11]} 40. Qd6
{[%clk 0:00:43.4]} 40... Bf7 {[%clk 0:00:11.1]} 41. e4 {[%clk 0:00:41]} 41...
fxe4 {[%clk 0:00:10.2]} 42. Rc3 {[%clk 0:00:40.3]} 42... Rc8 {[%clk 0:00:08.2]}
43. Rxc8+ {[%clk 0:00:39.3]} 43... Qxc8 {[%clk 0:00:08.1]} 44. b7 {[%clk
0:00:39]} 1-0

[Event "Late-Titled-Tuesday-Blitz-June-25-2024"]
[Site "Chess.com"]
[Date "2024.06.25"]
[Round "5"]
[White "patzer-reloaded"]
[Black "prxcess_brownie"]
[Result "0-1"]
[WhiteElo "2413"]
[BlackElo "2230"]
[TimeControl "180+1"]
[EndTime "14:54:20 PDT"]
[Termination "prxcess_brownie won on time"]

1. d4 {[%clk 0:03:00.9]} 1... Nf6 {[%clk 0:02:56.6]} 2. c4 {[%clk 0:03:01.8]}
2... g6 {[%clk 0:02:55.4]} 3. Nc3 {[%clk 0:03:01.4]} 3... Bg7 {[%clk 0:02:55]}
4. e4 {[%clk 0:03:02]} 4... d6 {[%clk 0:02:55.1]} 5. Nf3 {[%clk 0:03:02.6]} 5...
O-O {[%clk 0:02:53.7]} 6. Be2 {[%clk 0:03:01.3]} 6... e5 {[%clk 0:02:48]} 7. Be3
{[%clk 0:02:58.9]} 7... Nc6 {[%clk 0:02:47.5]} 8. d5 {[%clk 0:02:56.7]} 8... Ne7
{[%clk 0:02:47.1]} 9. Nd2 {[%clk 0:02:56.1]} 9... Ne8 {[%clk 0:02:38]} 10. g4
{[%clk 0:02:50.8]} 10... f5 {[%clk 0:02:32.1]} 11. gxf5 {[%clk 0:02:50]} 11...
gxf5 {[%clk 0:02:31.3]} 12. f3 {[%clk 0:02:50.6]} 12... fxe4 {[%clk 0:02:27.4]}
13. Ndxe4 {[%clk 0:02:46.4]} 13... Ng6 {[%clk 0:02:26.3]} 14. Qd2 {[%clk
0:02:21.4]} 14... Qh4+ {[%clk 0:02:02.6]} 15. Nf2 {[%clk 0:02:06.1]} 15... Nf6
{[%clk 0:01:45.4]} 16. O-O-O {[%clk 0:02:03.5]} 16... Bf5 {[%clk 0:01:42.3]} 17.
Rdg1 {[%clk 0:01:46.9]} 17... Kh8 {[%clk 0:01:36.4]} 18. Nfe4 {[%clk 0:01:24.9]}
18... Bxe4 {[%clk 0:01:19.8]} 19. Nxe4 {[%clk 0:01:25.8]} 19... Nxe4 {[%clk
0:01:12.6]} 20. fxe4 {[%clk 0:01:26.7]} 20... Qxe4 {[%clk 0:01:11.1]} 21. Bd3
{[%clk 0:01:25.3]} 21... Qf3 {[%clk 0:01:10.5]} 22. Rf1 {[%clk 0:00:46.3]} 22...
Qh5 {[%clk 0:01:07]} 23. Rhg1 {[%clk 0:00:28.9]} 23... Rxf1+ {[%clk 0:01:00.5]}
24. Rxf1 {[%clk 0:00:29.8]} 24... Rf8 {[%clk 0:00:59.2]} 25. Rg1 {[%clk
0:00:25.6]} 25... Nf4 {[%clk 0:00:54.9]} 26. Be4 {[%clk 0:00:24.2]} 26... Ne2+
{[%clk 0:00:47.7]} 27. Kc2 {[%clk 0:00:23.7]} 27... Nxg1 {[%clk 0:00:47.4]} 28.
Bxg1 {[%clk 0:00:23.9]} 28... Bh6 {[%clk 0:00:47.5]} 29. Qg2 {[%clk 0:00:13.6]}
29... Rg8 {[%clk 0:00:45.4]} 30. Qf2 {[%clk 0:00:12.4]} 30... Bf4 {[%clk
0:00:42]} 31. h4 {[%clk 0:00:09.3]} 31... Qg4 {[%clk 0:00:38.5]} 32. Bh2 {[%clk
0:00:07.1]} 32... Bxh2 {[%clk 0:00:37.7]} 33. Qf6+ {[%clk 0:00:05.4]} 33... Qg7
{[%clk 0:00:36]} 34. Qf5 {[%clk 0:00:04.4]} 34... Bf4 {[%clk 0:00:35.6]} 35. h5
{[%clk 0:00:04.7]} 35... h6 {[%clk 0:00:35.5]} 36. Kb3 {[%clk 0:00:04.1]} 36...
Rf8 {[%clk 0:00:35.5]} 37. Qe6 {[%clk 0:00:03.7]} 37... Bg5 {[%clk 0:00:32.3]}
38. Bg6 {[%clk 0:00:03.5]} 38... Qe7 {[%clk 0:00:29.9]} 39. Qg4 {[%clk
0:00:02.5]} 39... Kg7 {[%clk 0:00:28.5]} 40. a3 {[%clk 0:00:01.8]} 40... Rf6
{[%clk 0:00:26.4]} 0-1

[Event "Late-Titled-Tuesday-Blitz-June-25-2024"]
[Site "Chess.com"]
[Date "2024.06.25"]
[Round "5"]
[White "zsizsi99"]
[Black "Mops_2004"]
[Result "0-1"]
[WhiteElo "2564"]
[BlackElo "2794"]
[TimeControl "180+1"]
[EndTime "14:54:21 PDT"]
[Termination "Mops_2004 won on time"]

1. e4 {[%clk 0:03:00.9]} 1... c5 {[%clk 0:02:59.2]} 2. Nf3 {[%clk 0:02:59.5]}
2... e6 {[%clk 0:02:59.5]} 3. d4 {[%clk 0:02:55.6]} 3... cxd4 {[%clk 0:03:00.4]}
4. Nxd4 {[%clk 0:02:55]} 4... Nc6 {[%clk 0:03:00.6]} 5. Nc3 {[%clk 0:02:50.7]}
5... Qc7 {[%clk 0:03:00.7]} 6. Qd3 {[%clk 0:02:49.4]} 6... Nf6 {[%clk
0:02:59.6]} 7. Ndb5 {[%clk 0:02:49.1]} 7... Qb8 {[%clk 0:02:59.5]} 8. Qg3 {[%clk
0:02:49.2]} 8... d6 {[%clk 0:02:59.8]} 9. Bf4 {[%clk 0:02:48.6]} 9... Nh5 {[%clk
0:02:49.7]} 10. Bxd6 {[%clk 0:02:33.3]} 10... Nxg3 {[%clk 0:02:45.3]} 11. Bxb8
{[%clk 0:02:32.1]} 11... Nxh1 {[%clk 0:02:41.9]} 12. Bf4 {[%clk 0:01:52.5]}
12... e5 {[%clk 0:02:40]} 13. Be3 {[%clk 0:01:32.8]} 13... Rb8 {[%clk
0:02:25.6]} 14. Nc7+ {[%clk 0:01:20.4]} 14... Kd8 {[%clk 0:02:21.9]} 15. N3b5
{[%clk 0:01:08.6]} 15... a6 {[%clk 0:01:49.7]} 16. O-O-O+ {[%clk 0:01:03.2]}
16... Bd7 {[%clk 0:01:49.8]} 17. Bb6 {[%clk 0:00:50]} 17... axb5 {[%clk
0:01:49.1]} 18. Bxb5 {[%clk 0:00:33.9]} 18... Kc8 {[%clk 0:01:34.3]} 19. Nd5
{[%clk 0:00:22.7]} 19... Nd4 {[%clk 0:01:17.1]} 20. Bxd4 {[%clk 0:00:10.6]}
20... exd4 {[%clk 0:01:11.5]} 21. Nb6+ {[%clk 0:00:09.2]} 21... Kc7 {[%clk
0:01:12]} 22. Nxd7 {[%clk 0:00:08.8]} 22... Rd8 {[%clk 0:01:12.4]} 23. Ne5
{[%clk 0:00:08.2]} 23... Nxf2 {[%clk 0:01:08.8]} 24. Rf1 {[%clk 0:00:08.3]}
24... Nxe4 {[%clk 0:01:05.6]} 25. Nxf7 {[%clk 0:00:07.8]} 25... Be7 {[%clk
0:01:03]} 26. Bd3 {[%clk 0:00:06.2]} 26... Nf6 {[%clk 0:01:02.2]} 27. Nxh8
{[%clk 0:00:04.4]} 27... Rxh8 {[%clk 0:01:01.8]} 28. Rf4 {[%clk 0:00:03.7]}
28... Rd8 {[%clk 0:01:01.4]} 29. h3 {[%clk 0:00:03.2]} 29... Rd5 {[%clk
0:00:57.1]} 30. g4 {[%clk 0:00:03]} 30... Bd6 {[%clk 0:00:57.3]} 31. Rf3 {[%clk
0:00:02.9]} 31... Re5 {[%clk 0:00:56.5]} 32. Kd1 {[%clk 0:00:03]} 32... Re3
{[%clk 0:00:56.5]} 33. Rf1 {[%clk 0:00:02.1]} 33... h6 {[%clk 0:00:53.1]} 34. h4
{[%clk 0:00:01.7]} 34... Rg3 {[%clk 0:00:52.6]} 35. g5 {[%clk 0:00:02.2]} 35...
hxg5 {[%clk 0:00:53.1]} 36. hxg5 {[%clk 0:00:02.8]} 36... Rxg5 {[%clk 0:00:54]}
37. b3 {[%clk 0:00:02]} 37... Kd7 {[%clk 0:00:48.4]} 38. Rh1 {[%clk 0:00:02.5]}
38... Nd5 {[%clk 0:00:47.8]} 39. a4 {[%clk 0:00:03.2]} 39... Nc3+ {[%clk
0:00:46.1]} 40. Kc1 {[%clk 0:00:02.8]} 40... Ba3+ {[%clk 0:00:44.3]} 41. Kd2
{[%clk 0:00:02.6]} 41... Rg2+ {[%clk 0:00:44.9]} 42. Ke1 {[%clk 0:00:02.3]}
42... Nd5 {[%clk 0:00:42.1]} 43. Be4 {[%clk 0:00:02.1]} 43... Bb4+ {[%clk
0:00:42.2]} 44. Kd1 {[%clk 0:00:01]} 44... Ne3+ {[%clk 0:00:39.6]} 45. Kc1
{[%clk 0:00:01.7]} 45... Rf2 {[%clk 0:00:37.4]} 0-1

[Event "Late-Titled-Tuesday-Blitz-June-25-2024"]
[Site "Chess.com"]
[Date "2024.06.25"]
[Round "5"]
[White "GelmanAlexander"]
[Black "Duhless"]
[Result "0-1"]
[WhiteElo "2703"]
[BlackElo "3100"]
[TimeControl "180+1"]
[EndTime "14:54:30 PDT"]
[Termination "Duhless won by resignation"]

1. c4 {[%clk 0:03:00.9]} 1... Na6 {[%clk 0:02:54.1]} 2. d3 {[%clk 0:02:59.6]}
2... g6 {[%clk 0:02:53.5]} 3. Nf3 {[%clk 0:02:59]} 3... Bg7 {[%clk 0:02:53.4]}
4. e3 {[%clk 0:02:59.2]} 4... Nc5 {[%clk 0:02:50.6]} 5. Be2 {[%clk 0:02:58.2]}
5... d6 {[%clk 0:02:50.1]} 6. Qc2 {[%clk 0:02:55.3]} 6... Nf6 {[%clk 0:02:47.1]}
7. Nc3 {[%clk 0:02:54.8]} 7... a5 {[%clk 0:02:45.5]} 8. b3 {[%clk 0:02:46.2]}
8... O-O {[%clk 0:02:43.3]} 9. O-O {[%clk 0:02:45.8]} 9... e5 {[%clk 0:02:40.8]}
10. Bb2 {[%clk 0:02:44.8]} 10... Re8 {[%clk 0:02:36.6]} 11. Rfd1 {[%clk
0:02:41.8]} 11... Bf5 {[%clk 0:02:32.5]} 12. Nd2 {[%clk 0:02:39.5]} 12... h5
{[%clk 0:02:28.9]} 13. a3 {[%clk 0:02:37.5]} 13... e4 {[%clk 0:02:19.7]} 14.
dxe4 {[%clk 0:02:22.1]} 14... Nfxe4 {[%clk 0:02:14.6]} 15. Ncxe4 {[%clk
0:02:15.4]} 15... Nxe4 {[%clk 0:02:12.9]} 16. Nxe4 {[%clk 0:02:09.1]} 16... Bxe4
{[%clk 0:02:11.8]} 17. Qd2 {[%clk 0:02:05.8]} 17... Qg5 {[%clk 0:02:07.6]} 18.
Bf1 {[%clk 0:02:02.2]} 18... Bxb2 {[%clk 0:01:52.7]} 19. Qxb2 {[%clk 0:02:01.9]}
19... h4 {[%clk 0:01:51.2]} 20. h3 {[%clk 0:02:00.8]} 20... Re6 {[%clk
0:01:45.7]} 21. Qd4 {[%clk 0:01:45.8]} 21... Rae8 {[%clk 0:01:36.2]} 22. Rd2
{[%clk 0:01:41.9]} 22... b6 {[%clk 0:01:26.3]} 23. b4 {[%clk 0:01:41]} 23... c5
{[%clk 0:01:16.8]} 24. bxc5 {[%clk 0:01:35.8]} 24... bxc5 {[%clk 0:01:10.3]} 25.
Qc3 {[%clk 0:01:35.9]} 25... a4 {[%clk 0:01:00.9]} 26. Rad1 {[%clk 0:01:35.5]}
26... Bf3 {[%clk 0:00:55.1]} 27. Rb1 {[%clk 0:01:29.3]} 27... Be4 {[%clk
0:00:54.6]} 28. Rb6 {[%clk 0:01:24.1]} 28... Qe7 {[%clk 0:00:49.2]} 29. Rdb2
{[%clk 0:01:12.6]} 29... d5 {[%clk 0:00:37.6]} 30. f3 {[%clk 0:00:36.5]} 30...
Rxb6 {[%clk 0:00:32.7]} 31. Rxb6 {[%clk 0:00:37.4]} 31... Bf5 {[%clk 0:00:30]}
32. cxd5 {[%clk 0:00:36]} 32... Qxe3+ {[%clk 0:00:29.7]} 33. Qxe3 {[%clk
0:00:35.9]} 33... Rxe3 {[%clk 0:00:30.4]} 34. Rc6 {[%clk 0:00:32.1]} 34... Rxa3
{[%clk 0:00:30.1]} 35. Rxc5 {[%clk 0:00:32.3]} 35... Ra1 {[%clk 0:00:30.4]} 36.
Kf2 {[%clk 0:00:31.7]} 36... Kg7 {[%clk 0:00:23.5]} 37. Ra5 {[%clk 0:00:28.7]}
37... Kf6 {[%clk 0:00:21.3]} 38. f4 {[%clk 0:00:25.8]} 38... a3 {[%clk
0:00:12.8]} 39. Ra6+ {[%clk 0:00:24.7]} 39... Kg7 {[%clk 0:00:10.3]} 40. Bc4
{[%clk 0:00:20.8]} 40... Rc1 {[%clk 0:00:09.7]} 41. Bf1 {[%clk 0:00:17.7]} 41...
Rxf1+ {[%clk 0:00:08.6]} 42. Kxf1 {[%clk 0:00:17.1]} 42... Bd3+ {[%clk
0:00:08.8]} 0-1

[Event "Late-Titled-Tuesday-Blitz-June-25-2024"]
[Site "Chess.com"]
[Date "2024.06.25"]
[Round "5"]
[White "AlexOstrovskiy"]
[Black "Tigranpatagonian"]
[Result "1-0"]
[WhiteElo "2716"]
[BlackElo "2463"]
[TimeControl "180+1"]
[EndTime "14:54:32 PDT"]
[Termination "AlexOstrovskiy won on time"]

1. e4 {[%clk 0:02:52.1]} 1... e6 {[%clk 0:02:59.5]} 2. b3 {[%clk 0:02:30.4]}
2... b6 {[%clk 0:02:58.4]} 3. Bb2 {[%clk 0:02:28.6]} 3... Bb7 {[%clk 0:02:58.9]}
4. Nc3 {[%clk 0:02:29]} 4... Nf6 {[%clk 0:02:57.7]} 5. e5 {[%clk 0:02:18.9]}
5... Nd5 {[%clk 0:02:57]} 6. Nxd5 {[%clk 0:02:16]} 6... Bxd5 {[%clk 0:02:56.9]}
7. Nf3 {[%clk 0:02:16.8]} 7... Be7 {[%clk 0:02:51.9]} 8. Bd3 {[%clk 0:02:14]}
8... Bb7 {[%clk 0:02:39.6]} 9. Qe2 {[%clk 0:02:13.1]} 9... a5 {[%clk 0:02:36.8]}
10. a3 {[%clk 0:02:06.2]} 10... Na6 {[%clk 0:02:31.7]} 11. c4 {[%clk 0:01:58.7]}
11... Nc5 {[%clk 0:02:20.4]} 12. Bc2 {[%clk 0:01:55.1]} 12... a4 {[%clk
0:02:20.3]} 13. b4 {[%clk 0:01:50]} 13... Nb3 {[%clk 0:02:20.3]} 14. Rd1 {[%clk
0:01:48]} 14... d5 {[%clk 0:01:44.4]} 15. exd6 {[%clk 0:01:44]} 15... cxd6
{[%clk 0:01:41.4]} 16. d4 {[%clk 0:01:33.7]} 16... Rc8 {[%clk 0:01:31.2]} 17.
Bd3 {[%clk 0:01:29.7]} 17... O-O {[%clk 0:01:10]} 18. O-O {[%clk 0:01:29]} 18...
Bf6 {[%clk 0:01:05.2]} 19. Rfe1 {[%clk 0:01:26.5]} 19... Re8 {[%clk 0:01:03]}
20. h3 {[%clk 0:01:19.5]} 20... g6 {[%clk 0:01:01.6]} 21. Qe3 {[%clk 0:00:59.1]}
21... Bxf3 {[%clk 0:00:46.1]} 22. gxf3 {[%clk 0:00:51]} 22... Bg5 {[%clk
0:00:43.5]} 23. f4 {[%clk 0:00:50.8]} 23... Bh6 {[%clk 0:00:43.6]} 24. d5 {[%clk
0:00:38.5]} 24... e5 {[%clk 0:00:36.1]} 25. Qf3 {[%clk 0:00:25.1]} 25... Bxf4
{[%clk 0:00:33.2]} 26. Kh1 {[%clk 0:00:25.6]} 26... Qh4 {[%clk 0:00:30]} 27. Rg1
{[%clk 0:00:24.6]} 27... e4 {[%clk 0:00:20.2]} 28. Bxe4 {[%clk 0:00:20.5]} 28...
Rxe4 {[%clk 0:00:19.7]} 29. Rg4 {[%clk 0:00:17.6]} 29... Qe7 {[%clk 0:00:18.5]}
30. Rxf4 {[%clk 0:00:16.6]} 30... Rcxc4 {[%clk 0:00:17.5]} 31. Rf6 {[%clk
0:00:07.4]} 31... Rc2 {[%clk 0:00:04.2]} 32. Ba1 {[%clk 0:00:03.3]} 32... Nd2
{[%clk 0:00:02.9]} 33. Rxd2 {[%clk 0:00:02.2]} 33... Rxd2 {[%clk 0:00:02.9]} 34.
Rxf7 {[%clk 0:00:01.6]} 1-0

[Event "Late-Titled-Tuesday-Blitz-June-25-2024"]
[Site "Chess.com"]
[Date "2024.06.25"]
[Round "5"]
[White "talaicito"]
[Black "ATM622"]
[Result "1-0"]
[WhiteElo "2368"]
[BlackElo "2531"]
[TimeControl "180+1"]
[EndTime "14:54:32 PDT"]
[Termination "talaicito won by resignation"]

1. d4 {[%clk 0:03:00.9]} 1... d5 {[%clk 0:02:59.8]} 2. Bf4 {[%clk 0:03:00.2]}
2... Nf6 {[%clk 0:02:59.3]} 3. Nc3 {[%clk 0:03:00.6]} 3... e6 {[%clk 0:02:59.5]}
4. e3 {[%clk 0:03:01.1]} 4... c5 {[%clk 0:02:57.2]} 5. Nb5 {[%clk 0:03:00.5]}
5... Na6 {[%clk 0:02:57.2]} 6. c3 {[%clk 0:03:01.1]} 6... Be7 {[%clk 0:02:55]}
7. Nf3 {[%clk 0:03:00.8]} 7... O-O {[%clk 0:02:54.8]} 8. Bd3 {[%clk 0:03:00.8]}
8... Bd7 {[%clk 0:02:49.6]} 9. a4 {[%clk 0:02:59.4]} 9... Ne4 {[%clk 0:02:42.1]}
10. Ne5 {[%clk 0:02:55.2]} 10... f5 {[%clk 0:02:38.1]} 11. f3 {[%clk 0:02:39.1]}
11... Nd6 {[%clk 0:02:25.1]} 12. Nxd6 {[%clk 0:02:26.6]} 12... Bxd6 {[%clk
0:02:24.4]} 13. Nf7 {[%clk 0:02:23.8]} 13... Rxf7 {[%clk 0:02:13.1]} 14. Bxd6
{[%clk 0:02:23.9]} 14... cxd4 {[%clk 0:02:10.3]} 15. exd4 {[%clk 0:02:22.3]}
15... Bxa4 {[%clk 0:02:09.2]} 16. Qxa4 {[%clk 0:02:20.9]} 16... Qxd6 {[%clk
0:02:09.3]} 17. Bxa6 {[%clk 0:02:18.3]} 17... bxa6 {[%clk 0:02:09.3]} 18. Qxa6
{[%clk 0:02:18.8]} 18... Rd8 {[%clk 0:01:16.2]} 19. O-O {[%clk 0:02:14.7]} 19...
h5 {[%clk 0:01:07.2]} 20. Rfe1 {[%clk 0:02:12.1]} 20... Re7 {[%clk 0:01:01.2]}
21. b4 {[%clk 0:02:05]} 21... Kf7 {[%clk 0:00:57]} 22. Qxd6 {[%clk 0:01:46.7]}
22... Rxd6 {[%clk 0:00:56.9]} 23. Ra3 {[%clk 0:01:47.4]} 23... Rc6 {[%clk
0:00:52.3]} 24. Re3 {[%clk 0:01:41.9]} 24... f4 {[%clk 0:00:44.8]} 25. Rd3
{[%clk 0:01:41.7]} 25... Rec7 {[%clk 0:00:38.9]} 26. Kf2 {[%clk 0:01:40.4]}
26... Kf6 {[%clk 0:00:35.4]} 27. Ke2 {[%clk 0:01:39.3]} 27... g5 {[%clk
0:00:32.2]} 28. Kd2 {[%clk 0:01:34.7]} 28... g4 {[%clk 0:00:30]} 29. Ra5 {[%clk
0:01:33.1]} 29... Kg5 {[%clk 0:00:23.1]} 30. Rc5 {[%clk 0:01:26.1]} 30... Rxc5
{[%clk 0:00:20.6]} 31. dxc5 {[%clk 0:01:25.8]} 31... Kf5 {[%clk 0:00:19]} 32.
Kc2 {[%clk 0:01:18.1]} 32... Ke5 {[%clk 0:00:17.2]} 33. Rd2 {[%clk 0:01:17.4]}
33... gxf3 {[%clk 0:00:10.1]} 34. gxf3 {[%clk 0:01:17.1]} 34... Kf5 {[%clk
0:00:06.1]} 35. Rg2 {[%clk 0:01:09.6]} 35... e5 {[%clk 0:00:06.4]} 36. h4 {[%clk
0:01:09.8]} 36... e4 {[%clk 0:00:06.7]} 37. Rg5+ {[%clk 0:01:09.4]} 37... Ke6
{[%clk 0:00:06.9]} 38. Rxh5 {[%clk 0:01:05.3]} 38... Rg7 {[%clk 0:00:05.7]} 39.
c4 {[%clk 0:00:54.8]} 39... d4 {[%clk 0:00:02.6]} 40. fxe4 {[%clk 0:00:54.2]}
40... Rg3 {[%clk 0:00:02.3]} 41. c6 {[%clk 0:00:51.5]} 41... f3 {[%clk
0:00:02.2]} 42. Rf5 {[%clk 0:00:48.3]} 42... Kd6 {[%clk 0:00:02.5]} 43. b5
{[%clk 0:00:48.2]} 43... Rg2+ {[%clk 0:00:01.9]} 44. Kd3 {[%clk 0:00:47.7]}
44... f2 {[%clk 0:00:02.3]} 45. Kxd4 {[%clk 0:00:48]} 45... Rg1 {[%clk
0:00:01.5]} 46. Rxf2 {[%clk 0:00:47.4]} 46... Rd1+ {[%clk 0:00:01.5]} 47. Ke3
{[%clk 0:00:46.9]} 47... Rh1 {[%clk 0:00:02.2]} 48. Rf7 {[%clk 0:00:45]} 48...
Rxh4 {[%clk 0:00:01.9]} 49. Rxa7 {[%clk 0:00:44.8]} 49... Rh3+ {[%clk
0:00:01.3]} 50. Kd4 {[%clk 0:00:45]} 50... Rh1 {[%clk 0:00:01.5]} 51. Rd7+
{[%clk 0:00:45.4]} 51... Ke6 {[%clk 0:00:01.9]} 52. Kc5 {[%clk 0:00:45.5]} 52...
Re1 {[%clk 0:00:01.8]} 53. Rd4 {[%clk 0:00:44.1]} 53... Rb1 {[%clk 0:00:01.2]}
54. c7 {[%clk 0:00:44]} 1-0